fUSD/lending_fUSD_20260626
["ID","MTS","AMOUNT","RATE_DAILY","PERIOD"]
[426501737,1782487839000,-152.0,0.00014698,2]
[426501774,1782487839000,-150.0,0.00014698,2]
[426501735,1782487839000,-150.0,0.00014698,2]
[426501745,1782487839000,-151.0,0.00014698,2]
[426501749,1782487839000,-151.0,0.00014698,2]
[426501741,1782487839000,-151.0,0.00014698,2]
[426501747,1782487839000,-152.0,0.00014698,2]
[426501760,1782487839000,-151.0,0.00014698,2]
[426501758,1782487839000,-151.0,0.00014698,2]
[426501756,1782487839000,-150.0,0.00014698,2]
[426501752,1782487839000,-151.0,0.00014698,2]
[426501762,1782487839000,-151.0,0.00014698,2]
[426501754,1782487839000,-150.0,0.00014698,2]
[426501764,1782487839000,-150.0,0.00014698,2]
[426501739,1782487839000,-152.0,0.00014698,2]
[426501814,1782487839000,-200.0,0.00014699,2]
[426501881,1782487839000,-275.90789079,0.00014899,2]
[426501829,1782487839000,-153.0,0.00014699,2]
[426501889,1782487839000,-250.0,0.00015008,2]
[426501892,1782487839000,-255.0,0.00015225,2]
[426501900,1782487839000,-571.14,0.000153,2]
[426501904,1782487839000,-300.0,0.00015773,2]
[426501902,1782487839000,-259.20868584,0.00015421,2]
[426501908,1782487839000,-255.0,0.00016437,2]
[426501913,1782487839000,-166.0,0.00016609,2]
[426501906,1782487839000,-600.0,0.00015773,2]
[426501921,1782487839000,-181.1801545,0.00017956,2]
[426501910,1782487839000,-898.41,0.00016454,2]
[426501917,1782487839000,-500.0,0.00017255,2]
[426501885,1782487839000,-500.0,0.00014999,2]
[426501923,1782487839000,-275.90789076,0.00018042,2]
[426501925,1782487839000,-2906.53334702,0.00018772,2]
[426501927,1782487839000,-150.0,0.00019673,2]
[426501929,1782487839000,-282.0,0.00019673,2]
[426501935,1782487839000,-192.0,0.0002,2]
[426501931,1782487839000,-3649.0,0.00019673,2]
[426501933,1782487839000,-166.0,0.00019931,2]
[426501937,1782487839000,-228.0,0.0002,2]
[426501944,1782487839000,-500.0,0.00020055,2]
[426501940,1782487839000,-1424.0,0.0002,2]
[426501942,1782487839000,-575.52,0.00020007,2]
[426501824,1782487839000,-33326.4581,0.00014699,2]
[426501919,1782487839000,-37138.46655264,0.00017543,2]
[426501883,1782487839000,-500.0,0.00014999,2]
[426501915,1782487839000,-2906.53334702,0.00016685,2]
[426501887,1782487839000,-300.0,0.00015008,2]
[426501890,1782487839000,-500.0,0.00015147,2]
[426501827,1782487839000,-152.0,0.00014699,2]
[426501835,1782487839000,-150.0,0.00014699,2]
[426501845,1782487839000,-500.0,0.00014798,2]
[426501852,1782487839000,-500.0,0.00014798,2]
[426501850,1782487839000,-500.0,0.00014798,2]
[426501847,1782487839000,-500.0,0.00014798,2]
[426501836,1782487839000,-1474.9609,0.00014699,2]
[426501854,1782487839000,-500.0,0.00014798,2]
[426501839,1782487839000,-2500.0,0.00014699,2]
[426501843,1782487839000,-216.48047229,0.00014712,2]
[426501856,1782487839000,-500.0,0.00014798,2]
[426501841,1782487839000,-160.0,0.00014712,2]
[426501848,1782487839000,-500.0,0.00014798,2]
[426501858,1782487839000,-500.0,0.00014798,2]
[426501879,1782487839000,-500.0,0.00014873,2]
[426501875,1782487839000,-152.0,0.00014799,2]
[426501873,1782487839000,-151.0,0.00014799,2]
[426501871,1782487839000,-151.0,0.00014799,2]
[426501869,1782487839000,-598.71,0.00014798,2]
[426501877,1782487839000,-181.18015454,0.00014799,2]
[426501864,1782487839000,-500.0,0.00014798,2]
[426501865,1782487839000,-500.0,0.00014798,2]
[426501862,1782487839000,-500.0,0.00014798,2]
[426501860,1782487839000,-500.0,0.00014798,2]
[426501867,1782487839000,-500.0,0.00014798,2]
[426501991,1782487840000,-6188.91,0.00025786,2]
[426501989,1782487840000,-3649.0,0.00025673,2]
[426502001,1782487840000,-1210.52,0.00026638,2]
[426502000,1782487840000,-2667.17708183,0.00026251,14]
[426501990,1782487840000,-572.90431614,0.00025751,14]
[426501983,1782487840000,-1210.52,0.00024658,2]
[426501987,1782487840000,-1210.52,0.00025318,7]
[426501982,1782487840000,-1000.0,0.00024658,2]
[426501985,1782487840000,-240.0,0.00025,2]
[426501981,1782487840000,-215.57,0.00024658,2]
[426501995,1782487840000,-217.90474503,0.00026244,2]
[426501986,1782487840000,-2906.53334702,0.00025031,2]
[426501992,1782487840000,-1210.52,0.00025978,30]
[426502013,1782487840000,-1500.0,0.00027397,2]
[426501998,1782487840000,-326.04828834,0.00026244,2]
[426501997,1782487840000,-390.0601943,0.00026244,2]
[426501996,1782487840000,-379.01358857,0.00026244,2]
[426501993,1782487840000,-223.13493526,0.0002614,2]
[426501994,1782487840000,-442.29380599,0.0002624,2]
[426502002,1782487840000,-699.27,0.00026849,30]
[426502004,1782487840000,-2906.53334702,0.00027117,2]
[426502006,1782487840000,-5398.5195,0.00027251,14]
[426502012,1782487840000,-166.98016526,0.00027397,2]
[426502014,1782487840000,-448.0,0.00027397,2]
[426502003,1782487840000,-311.874209,0.0002709,2]
[426502005,1782487840000,-3989.93740104,0.00027251,14]
[426501979,1782487840000,-181.1801545,0.00024271,2]
[426501999,1782487840000,-1511.90355452,0.00026251,14]
[426501980,1782487840000,-275.90789076,0.00024328,2]
[426501950,1782487840000,-174.07,0.00020566,2]
[426501978,1782487840000,-1590.7,0.00024174,2]
[426501946,1782487840000,-1025.71,0.00020056,2]
[426501948,1782487840000,-575.52,0.00020507,2]
[426502010,1782487840000,-1210.52,0.00027298,7]
[426501961,1782487840000,-275.90789076,0.00021185,2]
[426501957,1782487840000,-501.17447858,0.00021,2]
[426501960,1782487840000,-181.1801545,0.00021114,2]
[426501959,1782487840000,-575.52,0.00021007,2]
[426501958,1782487840000,-228.0,0.00021,2]
[426501954,1782487840000,-2906.53334702,0.00020858,2]
[426501962,1782487840000,-575.52,0.00021507,2]
[426501952,1782487840000,-187.68979449,0.0002058,2]
[426501956,1782487840000,-192.0,0.00021,2]
[426501963,1782487840000,-192.0,0.00022,2]
[426501965,1782487840000,-575.52,0.00022008,2]
[426501975,1782487840000,-228.0,0.00024,2]
[426501976,1782487840000,-6188.91,0.00024174,2]
[426501964,1782487840000,-228.0,0.00022,2]
[426501968,1782487840000,-3649.0,0.00022673,2]
[426501972,1782487840000,-228.0,0.00023,2]
[426501970,1782487840000,-2906.53334702,0.00022944,2]
[426501971,1782487840000,-192.0,0.00023,2]
[426501967,1782487840000,-282.0,0.00022673,2]
[426501966,1782487840000,-330.63904238,0.00022638,2]
[426501969,1782487840000,-898.41,0.00022901,2]
[426501973,1782487840000,-347.86,0.00023311,2]
[426501974,1782487840000,-192.0,0.00024,2]
[426501977,1782487840000,-1205.31,0.00024174,2]
[426501988,1782487840000,-282.0,0.00025673,2]
[426502009,1782487840000,-623.51381029,0.00027259,2]
[426501984,1782487840000,-192.0,0.00025,2]
[426502011,1782487840000,-221.35471241,0.00027396,2]
[426502043,1782487840000,-154.0,0.00028602,30]
[426502044,1782487840000,-152.0,0.00028602,30]
[426502045,1782487840000,-192.0,0.00028602,30]
[426502046,1782487840000,-156.0,0.00028602,30]
[426502047,1782487840000,-155.0,0.00028602,30]
[426502048,1782487840000,-157.0,0.00028602,30]
[426502051,1782487840000,-228.0,0.00028602,30]
[426502052,1782487840000,-1210.52,0.00028618,2]
[426502054,1782487840000,-3649.0,0.00028673,2]
[426502053,1782487840000,-282.0,0.00028673,2]
[426502059,1782487840000,-10000.0,0.00029,2]
[426502063,1782487840000,-1205.31,0.00029009,7]
[426502057,1782487840000,-800.0,0.00029,2]
[426502040,1782487840000,-800.0,0.000285,2]
[426502056,1782487840000,-315.45,0.00029,7]
[426502058,1782487840000,-800.0,0.00029,2]
[426502062,1782487840000,-1066.4,0.00029,7]
[426502060,1782487840000,-1470.43361118,0.00029,2]
[426502065,1782487840000,-2906.53334702,0.00029203,2]
[426502064,1782487840000,-1590.7,0.00029009,7]
[426502071,1782487840000,-800.0,0.000295,2]
[426502067,1782487840000,-1411.474,0.00029357,22]
[426502066,1782487840000,-1210.52,0.00029278,7]
[426502070,1782487840000,-800.0,0.000295,2]
[426502068,1782487840000,-1500.0,0.0002945,10]
[426502073,1782487840000,-159.0,0.000296,30]
[426502072,1782487840000,-158.0,0.000296,30]
[426502007,1782487840000,-500.0,0.00027259,2]
[426502055,1782487840000,-315.45,0.00028863,7]
[426502042,1782487840000,-159.0,0.000286,30]
[426502061,1782487840000,-736.19,0.00029,7]
[426502050,1782487840000,-156.0,0.00028602,30]
[426502008,1782487840000,-584.83671443,0.00027259,2]
[426502016,1782487840000,-287.26,0.00027397,2]
[426502041,1782487840000,-158.0,0.000286,30]
[426502026,1782487840000,-9951.3528746,0.00027665,2]
[426502018,1782487840000,-5658.81,0.00027397,10]
[426502022,1782487840000,-500.0,0.000275,7]
[426502020,1782487840000,-181.1801545,0.00027428,2]
[426502017,1782487840000,-6790.58,0.00027397,10]
[426502023,1782487840000,-50305.7191689,0.00027665,2]
[426502019,1782487840000,-216.76081939,0.00027397,2]
[426502021,1782487840000,-275.90789076,0.00027471,2]
[426502024,1782487840000,-1502.7557378,0.00027665,2]
[426502025,1782487840000,-3982.5662128,0.00027665,2]
[426502031,1782487840000,-800.0,0.00028,2]
[426502015,1782487840000,-402.0,0.00027397,2]
[426502029,1782487840000,-1210.52,0.00027958,30]
[426502028,1782487840000,-2549.8979653,0.00027665,2]
[426502038,1782487840000,-298.17803236,0.00028493,2]
[426502039,1782487840000,-800.0,0.000285,2]
[426502033,1782487840000,-500.0,0.00028493,2]
[426502034,1782487840000,-504.54272309,0.00028493,2]
[426502069,1782487840000,-350.0,0.00029485,13]
[426502049,1782487840000,-162.0,0.00028602,30]
[426502037,1782487840000,-500.0,0.00028493,2]
[426502027,1782487840000,-9635.7876264,0.00027665,2]
[426502032,1782487840000,-200.0,0.00028174,2]
[426502030,1782487840000,-800.0,0.00028,2]
[426502036,1782487840000,-500.0,0.00028493,2]
[426502035,1782487840000,-500.0,0.00028493,2]
[426502082,1782487841000,-228.0,0.00029602,30]
[426502096,1782487841000,-25000.0,0.0003,2]
[426502093,1782487841000,-2749.35,0.0003,2]
[426502095,1782487841000,-10000.0,0.0003,2]
[426502094,1782487841000,-15000.0,0.0003,2]
[426502092,1782487841000,-400.00524167,0.0003,5]
[426502091,1782487841000,-3526.0,0.0003,2]
[426502089,1782487841000,-800.0,0.0003,2]
[426502090,1782487841000,-800.0,0.0003,2]
[426502097,1782487841000,-12500.0,0.0003,2]
[426502084,1782487841000,-500.0,0.00029863,60]
[426502080,1782487841000,-162.0,0.00029602,30]
[426502087,1782487841000,-1210.52,0.00029938,30]
[426502086,1782487841000,-1034.41,0.0002987,7]
[426502085,1782487841000,-714.1,0.0002987,7]
[426502081,1782487841000,-156.0,0.00029602,30]
[426502088,1782487841000,-313.68,0.0003,30]
[426502078,1782487841000,-155.0,0.00029602,30]
[426502079,1782487841000,-157.0,0.00029602,30]
[426502077,1782487841000,-156.0,0.00029602,30]
[426502074,1782487841000,-154.0,0.00029602,30]
[426502076,1782487841000,-192.0,0.00029602,30]
[426502075,1782487841000,-152.0,0.00029602,30]
[426502100,1782487841000,-22500.0,0.0003,2]
[426502083,1782487841000,-311.87421,0.00029799,7]
[426502099,1782487841000,-25000.0,0.0003,2]
[426502105,1782487841000,-15000.0,0.000301,2]
[426502109,1782487841000,-178.56592398,0.00030137,2]
[426502098,1782487841000,-12500.0,0.0003,2]
[426502128,1782487841000,-1152.38968876,0.00030375,2]
[426502129,1782487841000,-875.50000001,0.00030375,2]
[426502125,1782487841000,-491.529431,0.00030375,2]
[426502123,1782487841000,-12500.0,0.00030375,2]
[426502124,1782487841000,-19223.95442294,0.00030375,2]
[426502116,1782487841000,-12500.0,0.0003025,2]
[426502121,1782487841000,-300.0,0.00030301,30]
[426502119,1782487841000,-9163.0,0.00030299,5]
[426502111,1782487841000,-9145.0,0.00030164,5]
[426502122,1782487841000,-10000.0,0.00030333,2]
[426502115,1782487841000,-12500.0,0.0003025,2]
[426502118,1782487841000,-2500.0,0.0003025,2]
[426502117,1782487841000,-22500.0,0.0003025,2]
[426502102,1782487841000,-2500.0,0.0003,2]
[426502101,1782487841000,-12500.0,0.0003,2]
[426502107,1782487841000,-22500.0,0.00030125,2]
[426502106,1782487841000,-12500.0,0.00030125,2]
[426502120,1782487841000,-194.0,0.00030299,2]
[426502104,1782487841000,-6074.98363389,0.00030051,5]
[426502103,1782487841000,-1000.0,0.0003,14]
[426502110,1782487841000,-189.91481881,0.00030137,30]
[426502112,1782487841000,-5179.51,0.000302,2]
[426502113,1782487841000,-8925.0,0.00030228,5]
[426502114,1782487841000,-25000.0,0.0003025,2]
[426502108,1782487841000,-703.10124048,0.00030136,7]
[426502140,1782487845000,152.0,0.000305,120]
[426502145,1782487846000,-756.62645729,0.00030375,2]
[426502143,1782487846000,-2500.0,0.00014599,2]
[426502147,1782487846000,-9096.0,0.00030487,5]
[426502146,1782487846000,-189.91481881,0.00030441,30]
[426502144,1782487846000,-1500.0,0.00027397,2]
[426502149,1782487846000,-800.0,0.000305,2]
[426502150,1782487846000,-800.0,0.000305,2]
[426502152,1782487846000,-1803.77838496,0.000305,2]
[426502151,1782487846000,-7242.20379718,0.000305,2]
[426502148,1782487846000,-9136.0,0.00030487,5]
[426502155,1782487847000,-9023.80726862,0.000305,2]
[426502153,1782487847000,-15954.01781786,0.000305,2]
[426502196,1782488463000,151.60781078,0.00037201,120]
[426502197,1782488502000,565.39026185,0.00037201,120]
[426502204,1782488572000,-151.0,0.00013972,2]
[426502203,1782488572000,-151.0,0.00013972,2]
[426502205,1782488572000,-151.0,0.00013972,2]
[426502208,1782488572000,-236.81590493,0.00014108,2]
[426502207,1782488572000,-153.0,0.00014108,2]
[426502210,1782488572000,-150.0,0.00014108,2]
[426502211,1782488572000,-151.0,0.00014108,2]
[426502206,1782488572000,-151.0,0.00013972,2]
[426502213,1782488572000,-151.0,0.00014114,2]
[426502212,1782488572000,-150.0,0.00014109,2]
[426502215,1782488572000,-151.0,0.00014208,2]
[426502214,1782488572000,-151.0,0.00014132,2]
[426502216,1782488572000,-152.0,0.00014208,2]
[426502217,1782488572000,-151.0,0.00014208,2]
[426502218,1782488572000,-153.0,0.00014208,2]
[426502209,1782488572000,-165.26572227,0.00014108,2]
[426502234,1782488573000,-500.0,0.00014497,2]
[426502233,1782488573000,-150.0,0.00014496,2]
[426502231,1782488573000,-151.0,0.00014398,2]
[426502229,1782488573000,-921.87068801,0.00014398,2]
[426502230,1782488573000,-158.53263519,0.00014398,2]
[426502225,1782488573000,-1129.179,0.00014208,2]
[426502227,1782488573000,-223.13493526,0.00014398,2]
[426502223,1782488573000,-151.0,0.00014208,2]
[426502224,1782488573000,-150.0,0.00014208,2]
[426502228,1782488573000,-171.40801699,0.00014398,2]
[426502222,1782488573000,-151.0,0.00014208,2]
[426502220,1782488573000,-152.0,0.00014208,2]
[426502221,1782488573000,-152.0,0.00014208,2]
[426502219,1782488573000,-151.0,0.00014208,2]
[426502226,1782488573000,-4186.6412,0.00014398,2]
[426502235,1782488573000,-500.0,0.00014497,2]
[426502232,1782488573000,-175.30782492,0.00014492,7]
[426502238,1782488573000,-526.17022991,0.00014497,2]
[426502253,1782488573000,-915.14248825,0.00014498,2]
[426502236,1782488573000,-500.0,0.00014497,2]
[426502251,1782488573000,-150.0,0.00014498,2]
[426502250,1782488573000,-76040.6861,0.00014498,2]
[426502249,1782488573000,-5854.35402383,0.00014497,2]
[426502248,1782488573000,-350.0,0.00014497,2]
[426502246,1782488573000,-500.0,0.00014497,2]
[426502247,1782488573000,-500.0,0.00014497,2]
[426502252,1782488573000,-151.0,0.00014498,2]
[426502244,1782488573000,-259.3857001,0.00014497,2]
[426502245,1782488573000,-500.0,0.00014497,2]
[426502243,1782488573000,-208.43545836,0.00014497,2]
[426502241,1782488573000,-500.0,0.00014497,2]
[426502239,1782488573000,-436.45966721,0.00014497,2]
[426502240,1782488573000,-259.68863773,0.00014497,2]
[426502237,1782488573000,-500.0,0.00014497,2]
[426502242,1782488573000,-155.52176704,0.00014497,2]
[426502255,1782488670000,166.66,0.00022772,30]
[426502254,1782488670000,166.66,0.00022321,30]
[426502256,1782488726000,151.0,0.00037201,120]
[426502258,1782488727000,151.0,0.00037201,120]
[426502257,1782488727000,151.0,0.00037201,120]
[426502259,1782488728000,223.264819,0.00037201,120]
[426502261,1782488752000,347.063694,0.00037201,120]
[426502264,1782488753000,347.063694,0.00037201,120]
[426502263,1782488753000,347.063694,0.00037201,120]
[426502262,1782488753000,347.063694,0.00037201,120]
[426502266,1782488754000,347.063694,0.00037201,120]
[426502265,1782488754000,347.063694,0.00037201,120]
[426502267,1782488755000,347.063694,0.00037201,120]
[426502269,1782488755000,347.063694,0.00037201,120]
[426502268,1782488755000,347.063694,0.00037201,120]
[426502271,1782488756000,347.063694,0.00037201,120]
[426502270,1782488756000,347.063694,0.00037201,120]
[426502274,1782488757000,347.063694,0.00037201,120]
[426502273,1782488757000,347.063694,0.00037201,120]
[426502272,1782488757000,347.063694,0.00037201,120]
[426502276,1782488758000,347.063694,0.00037201,120]
[426502275,1782488758000,347.063694,0.00037201,120]
[426502279,1782488759000,347.063694,0.00037201,120]
[426502278,1782488759000,347.063694,0.00037201,120]
[426502277,1782488759000,347.063694,0.00037201,120]
[426502280,1782488760000,347.063685,0.00037201,120]
[426502284,1782488829000,195.209941,0.00037201,120]
[426502286,1782488829000,195.209941,0.00037201,120]
[426502285,1782488829000,195.209941,0.00037201,120]
[426502288,1782488830000,195.209941,0.00037201,120]
[426502287,1782488830000,195.209941,0.00037201,120]
[426502290,1782488831000,195.209941,0.00037201,120]
[426502289,1782488831000,195.209941,0.00037201,120]
[426502292,1782488832000,195.209941,0.00037201,120]
[426502291,1782488832000,195.209941,0.00037201,120]
[426502295,1782488833000,195.209941,0.00037201,120]
[426502294,1782488833000,195.209941,0.00037201,120]
[426502293,1782488833000,195.209941,0.00037201,120]
[426502297,1782488834000,195.209941,0.00037201,120]
[426502296,1782488834000,195.209941,0.00037201,120]
[426502298,1782488835000,195.209941,0.00037201,120]
[426502300,1782488835000,195.209941,0.00037201,120]
[426502299,1782488835000,195.209941,0.00037201,120]
[426502302,1782488836000,195.209941,0.00037201,120]
[426502301,1782488836000,195.209941,0.00037201,120]
[426502303,1782488837000,195.209941,0.00037201,120]
[426502306,1782488860000,3334.427501,0.00037201,120]
[426502305,1782488860000,3334.427501,0.00037201,120]
[426502304,1782488860000,3334.427501,0.00037201,120]
[426502308,1782488861000,3334.427501,0.00037201,120]
[426502307,1782488861000,3334.427501,0.00037201,120]
[426502309,1782488862000,3334.427501,0.00037201,120]
[426502310,1782488862000,3334.427501,0.00037201,120]
[426502311,1782488862000,3334.427501,0.00037201,120]
[426502313,1782488863000,3334.427501,0.00037201,120]
[426502312,1782488863000,3334.427501,0.00037201,120]
[426502316,1782488864000,3334.427501,0.00037201,120]
[426502315,1782488864000,3334.427501,0.00037201,120]
[426502314,1782488864000,3334.427501,0.00037201,120]
[426502318,1782488865000,3334.427501,0.00037201,120]
[426502317,1782488865000,3334.427501,0.00037201,120]
[426502319,1782488866000,3334.427501,0.00037201,120]
[426502320,1782488866000,3334.427501,0.00037201,120]
[426502321,1782488866000,3334.427501,0.00037201,120]
[426502323,1782488867000,3334.42751,0.00037201,120]
[426502322,1782488867000,3334.427501,0.00037201,120]
[426502324,1782488874000,1000.0,0.00037201,120]
[426502325,1782488896000,1009.26,0.00037201,120]
[426502352,1782489031000,-306.90967086,0.00014497,2]
[426502357,1782489031000,-153.0,0.00014498,2]
[426502354,1782489031000,-500.0,0.00014497,2]
[426502353,1782489031000,-507.10545596,0.00014497,2]
[426502355,1782489031000,-500.0,0.00014497,2]
[426502360,1782489031000,-160.0,0.00014512,2]
[426502363,1782489031000,-6953.38834905,0.00014599,2]
[426502356,1782489031000,-150.0,0.00014498,2]
[426502361,1782489031000,-2214.4417945,0.00014599,2]
[426502365,1782489031000,-2649.67,0.00014817,2]
[426502359,1782489031000,-151.0,0.00014498,2]
[426502358,1782489031000,-150.0,0.00014498,2]
[426502351,1782489031000,-193.09032914,0.00014497,2]
[426502364,1782489031000,-500.0,0.00014698,2]
[426502349,1782489031000,-62.09956431,0.00014497,2]
[426502347,1782489031000,-280.6855811,0.00014497,2]
[426502348,1782489031000,-196.76567262,0.00014497,2]
[426502346,1782489031000,-69.60236776,0.00014497,2]
[426502345,1782489031000,-391.34847306,0.00014497,2]
[426502342,1782489031000,-600.0,0.00014473,2]
[426502343,1782489031000,-2715.8956466,0.00014477,2]
[426502344,1782489031000,-70.61914925,0.00014497,2]
[426502340,1782489031000,-83.48855237,0.00014473,2]
[426502341,1782489031000,-600.0,0.00014473,2]
[426502339,1782489031000,-516.51144763,0.00014473,2]
[426502336,1782489031000,-1063.43897184,0.00014398,2]
[426502337,1782489031000,-578.32851286,0.00014438,2]
[426502350,1782489031000,-500.0,0.00014497,2]
[426502362,1782489031000,-954.09695645,0.00014599,2]
[426502338,1782489031000,-21.67148714,0.00014438,2]
[426502367,1782489031000,-262.96173738,0.00015345,7]
[426502366,1782489031000,-224.04,0.0001521,2]
[426502417,1782489031000,-334.04,0.00016609,2]
[426502413,1782489031000,-183.42,0.00016454,2]
[426502412,1782489031000,-500.0,0.00016438,2]
[426502415,1782489031000,-1063.43897177,0.00016507,2]
[426502408,1782489031000,-500.0,0.00016438,2]
[426502406,1782489031000,-500.0,0.00016438,2]
[426502402,1782489031000,-500.0,0.00016438,2]
[426502404,1782489031000,-500.0,0.00016438,2]
[426502391,1782489031000,-500.0,0.00016438,2]
[426502397,1782489031000,-500.0,0.00016438,2]
[426502394,1782489031000,-500.0,0.00016438,2]
[426502399,1782489031000,-500.0,0.00016438,2]
[426502389,1782489031000,-468.55391018,0.00016438,2]
[426502410,1782489031000,-500.0,0.00016438,2]
[426502385,1782489031000,-500.0,0.00016438,2]
[426502387,1782489031000,-500.0,0.00016438,2]
[426502368,1782489031000,-600.0,0.00015838,2]
[426502370,1782489031000,-500.0,0.00016438,2]
[426502378,1782489031000,-500.0,0.00016438,2]
[426502371,1782489031000,-500.0,0.00016438,2]
[426502372,1782489031000,-500.0,0.00016438,2]
[426502369,1782489031000,-174.62,0.00016316,2]
[426502374,1782489031000,-500.0,0.00016438,2]
[426502376,1782489031000,-500.0,0.00016438,2]
[426502375,1782489031000,-500.0,0.00016438,2]
[426502379,1782489031000,-500.0,0.00016438,2]
[426502381,1782489031000,-500.0,0.00016438,2]
[426502383,1782489031000,-500.0,0.00016438,2]
[426502373,1782489031000,-500.0,0.00016438,2]
[426502438,1782489032000,-166.66,0.00021419,2]
[426502430,1782489032000,-6084.0,0.00019711,2]
[426502435,1782489032000,-243.04731045,0.00020944,2]
[426502432,1782489032000,-152.0,0.0002,2]
[426502436,1782489032000,-152.0,0.00021,2]
[426502431,1782489032000,-162.0,0.0002,2]
[426502429,1782489032000,-1361.0,0.00019711,2]
[426502440,1782489032000,-5000.0,0.00021918,2]
[426502419,1782489032000,-500.0,0.00018291,2]
[426502427,1782489032000,-6814.67,0.00019339,2]
[426502425,1782489032000,-1063.43897177,0.00018616,2]
[426502421,1782489032000,-500.0,0.00018533,2]
[426502426,1782489032000,-959.49297708,0.00018651,2]
[426502423,1782489032000,-1329.72,0.00018533,2]
[426502428,1782489032000,-223.0,0.00019711,2]
[426502437,1782489032000,-1297.87,0.00021193,2]
[426502441,1782489032000,-152.0,0.00022,2]
[426502433,1782489032000,-232.38543303,0.00020725,2]
[426502449,1782489032000,-183.42,0.00022901,2]
[426502439,1782489032000,-166.66,0.0002187,2]
[426502452,1782489032000,-166.66,0.00023223,30]
[426502458,1782489032000,-623.75982494,0.00024174,2]
[426502434,1782489032000,-831.05353874,0.00020725,2]
[426502454,1782489032000,-848.87424669,0.00023651,7]
[426502456,1782489032000,-1148.5485,0.00024151,7]
[426502457,1782489032000,-4984.60230254,0.00024174,2]
[426502455,1782489032000,-166.66,0.00023674,30]
[426502450,1782489032000,-152.0,0.00023,2]
[426502453,1782489032000,-200.0,0.0002359,2]
[426502448,1782489032000,-1063.43897177,0.00022834,2]
[426502446,1782489032000,-6084.0,0.00022711,2]
[426502445,1782489032000,-1361.0,0.00022711,2]
[426502447,1782489032000,-224.04,0.00022816,2]
[426502444,1782489032000,-321.66318965,0.00022151,7]
[426502442,1782489032000,-17805.75503467,0.00022129,2]
[426502443,1782489032000,-28650.94496533,0.00022129,2]
[426502451,1782489032000,-567.4519945,0.00023151,7]
[426502482,1782489037000,-500.0,0.00025753,30]
[426502484,1782489037000,-151.0,0.00025829,2]
[426502480,1782489037000,-6084.0,0.00025711,2]
[426502478,1782489037000,-1063.43897177,0.00024942,2]
[426502479,1782489037000,-1361.0,0.00025711,2]
[426502477,1782489037000,-1000.0,0.00024658,2]
[426502476,1782489037000,-24524.75787252,0.00024174,2]
[426502487,1782489037000,-500.0,0.00026027,30]
[426502475,1782489037000,-216.0,0.00022711,2]
[426502474,1782489037000,-216.213,0.00019711,2]
[426502481,1782489037000,-216.0,0.00025711,2]
[426502488,1782489037000,-500.0,0.00026301,30]
[426502483,1782489037000,-524.0,0.00025753,30]
[426502485,1782489037000,-155.85215518,0.00025829,2]
[426502490,1782489037000,-500.0,0.00026575,30]
[426502501,1782489037000,-500.0,0.000275,7]
[426502496,1782489037000,-300.0,0.00027397,2]
[426502486,1782489037000,-500.0,0.00026027,30]
[426502497,1782489037000,-4715.68,0.00027397,10]